bitfinex-derivatives/quotes_ETHF0:USTF0_20250606
["timestamp","ask_amount","ask_price","bid_price","bid_amount"]
[1749223216606,3.2078,2510.2,2509.3,3.2078]
[1749223216810,3.2078,2510.2,2509.6,3.2078]
[1749223217013,0.00597479,2510.4,2510.3,0.79609]
[1749223217208,0.00597479,2510.4,2509.7,1.3028]
[1749223217521,3.2078,2510.2,2509.7,1.38238048]
[1749223217707,0.00597479,2510.4,2510.3,0.79609]
[1749223217913,0.00597479,2510.4,2509.7,4.5106]
[1749223218115,0.00597479,2510.4,2510.3,0.79609]
[1749223218319,3.2078,2510.5,2509.7,4.59018048]
[1749223218320,3.2078,2511.4,2510.8,0.79591]
[1749223218515,3.2078,2511.1,2510.3,3.2078]
[1749223218728,3.2078,2511.1,2510.7,0.79595]
[1749223219016,3.2078,2511.1,2510.3,0.07958048]
[1749223219222,0.00597479,2511.0,2510.4,0.00597479]
[1749223219413,3.2078,2510.8,2510.4,0.00597479]
[1749223219617,0.00597479,2511.0,2510.9,0.7959]
[1749223220118,0.00597479,2511.0,2510.9,0.87548048]
[1749223220312,3.2078,2511.8,2510.9,8.2078]
[1749223220513,3.2078,2511.5,2511.2,0.79578]
[1749223220714,3.2078,2511.5,2511.0,0.79584]
[1749223220911,3.2078,2511.8,2511.0,0.07957569]
[1749223221118,3.2078,2512.1,2512.0,0.79556]
[1749223221312,3.2078,2513.0,2512.0,3.2078]
[1749223221525,24.063,2513.6,2512.0,3.2078]
[1749223221526,0.00597479,2512.3,2512.2,0.79549]
[1749223221731,0.00597479,2512.3,2511.8,3.21377479]
[1749223222017,4.79e-06,2512.3,2512.2,0.79549]
[1749223222321,3.1282291,2513.0,2512.9,0.79527]
[1749223222513,3.1282291,2513.0,2512.3,1.3819]
[1749223222720,3.1282291,2513.0,2511.8,0.00597479]
[1749223222917,3.2078,2512.3,2511.9,0.56884336]
[1749223223219,0.07961149,2512.2,2511.9,1.3819]
[1749223223532,3.2078,2512.0,2511.9,1.3819]
[1749223223823,3.2078,2512.0,2511.9,2.17749]
[1749223224321,3.2078,2512.0,2511.8,0.00597479]
[1749223224730,3.2078,2512.0,2511.8,2.18346479]
[1749223224916,3.2078,2512.0,2511.8,1.38787479]
[1749223225117,3.2078,2512.0,2511.9,0.79559]
[1749223225319,3.2078,2512.0,2511.8,2.18347479]
[1749223225527,4.00337,2512.0,2511.8,0.00597479]
[1749223225724,3.2078,2512.0,2511.8,0.00597479]
[1749223226026,3.2078,2512.0,2511.8,0.80157479]
[1749223226329,3.2078,2512.0,2511.8,0.00597479]
[1749223226625,3.2078,2512.0,2511.9,0.79559]
[1749223226818,3.2078,2512.0,2511.8,0.00597479]
[1749223227023,0.07961149,2512.2,2511.8,0.00597479]
[1749223227319,3.2078,2512.0,2511.8,0.00597479]
[1749223227518,3.2078,2512.0,2511.9,0.79559]
[1749223227825,0.79559,2511.9,2511.8,0.00597479]
[1749223228024,7.03659,2511.9,2511.8,0.00597479]
[1749223228422,6.241,2511.9,2511.8,0.80159479]
[1749223228729,3.2078,2512.0,2511.8,0.00597479]
[1749223229028,4.00337,2512.0,2511.8,0.00597479]
[1749223229228,4.00337,2512.0,2511.0,1.98965]
[1749223229229,8.2078,2512.0,2510.7,1.98985]
[1749223229426,3.2078,2511.4,2510.4,3.2078]
[1749223229630,3.2078,2510.6,2509.9,1.3634]
[1749223229826,9.4498,2510.5,2509.9,1.3634]
[1749223230130,3.2078,2510.2,2509.9,1.3634]
[1749223230322,4.00394,2510.2,2509.9,2.15961]
[1749223230726,0.79619,2510.0,2509.9,1.3634]
[1749223230929,3.2078,2510.2,2510.1,0.79616]
[1749223231926,3.2078,2510.2,2510.0,0.79617]
[1749223232126,3.2078,2510.2,2510.1,1.3693]
[1749223232325,4.00393,2510.2,2510.1,1.3693]
[1749223232728,0.00597479,2510.3,2510.1,6.3693]
[1749223232934,6.244,2511.2,2510.2,4.5771]
[1749223233133,0.79587,2511.0,2510.3,1.99024]
[1749223233427,3.2078,2511.3,2510.6,1.98996]
[1749223233635,3.2078,2511.3,2511.0,0.79585]
[1749223233831,3.2078,2511.3,2510.5,3.2078]
[1749223233832,3.2078,2511.3,2510.9,0.79589]
[1749223234031,3.2078,2511.0,2510.4,0.6461]
[1749223234232,3.2078,2510.7,2510.4,1.44215]
[1749223234431,3.2078,2510.7,2510.0,5.19825]
[1749223234432,3.2078,2510.7,2510.0,3.2078]
[1749223234630,3.2078,2510.7,2509.8,0.0773083]
[1749223234631,6.244,2510.6,2509.8,0.0773083]
[1749223234833,3.2078,2510.4,2510.3,0.79609]
[1749223235031,3.2078,2510.4,2510.1,0.79615]
[1749223235334,3.2078,2510.4,2510.3,0.79609]
[1749223235532,3.2078,2510.7,2510.4,0.79605]
[1749223235736,3.2078,2510.7,2509.8,6.24997479]
[1749223235931,3.2078,2510.4,2510.2,0.79611]
[1749223236132,3.2078,2510.4,2510.3,0.79609]
[1749223236631,0.79613,2510.2,2510.1,1.3284]
[1749223237139,0.79613,2510.2,2510.0,0.07133351]
[1749223237140,0.79616,2510.1,2510.0,0.07133351]
[1749223237327,3.2078,2510.1,2510.0,0.86752351]
[1749223237523,3.2078,2510.8,2510.7,0.79597]
[1749223238229,3.2078,2510.8,2510.3,1.2733]
[1749223238436,3.2078,2510.8,2510.7,0.79597]
[1749223238630,6.245,2511.2,2510.5,1.2733]
[1749223238830,6.245,2511.2,2510.6,1.99]
[1749223239030,0.79588,2511.0,2510.8,0.79592]
[1749223239324,3.2078,2511.1,2510.9,0.79589]
[1749223239634,3.2078,2511.2,2511.0,1.2733]
[1749223239830,0.79584,2511.1,2511.0,1.2733]
[1749223240232,3.2078,2511.2,2510.5,3.2078]
[1749223240436,3.2078,2511.2,2510.6,1.3797]
[1749223240933,3.2078,2511.2,2510.8,3.2078]
[1749223241238,3.2078,2511.2,2510.6,1.3797]
[1749223241627,0.00597479,2511.4,2511.1,0.79584]
[1749223241830,0.00597479,2511.4,2511.3,0.79578]
[1749223242235,0.00597479,2511.4,2511.3,2.17548]
[1749223242939,3.2078,2511.8,2511.7,0.79565]
[1749223243331,3.2078,2512.2,2512.1,0.79552]
[1749223243633,3.2078,2512.5,2512.1,1.98882]
[1749223243840,3.2078,2512.5,2512.0,1.98889]
[1749223244040,0.79543,2512.4,2511.6,5.19694]
[1749223244335,0.79543,2512.4,2511.8,0.79559]
[1749223244336,3.2078,2511.9,2511.8,0.79559]
[1749223244534,0.79552,2512.1,2511.9,0.79556]
[1749223244837,3.2078,2512.2,2511.3,1.98945]
[1749223245031,3.2078,2511.9,2511.1,6.25097479]
[1749223245232,3.2078,2511.9,2511.3,1.98945]
[1749223245437,4.00341,2511.9,2511.2,1.98953]
[1749223245735,0.79567,2511.7,2511.5,0.79569]
[1749223245931,0.7958,2511.3,2511.1,0.00597479]
[1749223246135,4.0036,2511.3,2511.2,1.3488]
[1749223246336,0.79581,2511.2,2511.1,0.00597479]
[1749223246841,4.0036,2511.3,2511.1,0.80181479]
[1749223247036,0.79581,2511.2,2511.1,0.00597479]
[1749223247536,9.4518,2511.3,2511.1,0.00597479]
[1749223247731,3.2078,2511.3,2511.1,0.00597479]
[1749223248132,3.2078,2511.3,2511.2,0.79581]
[1749223248334,3.2078,2511.3,2511.2,2.07191]
[1749223248542,3.2078,2511.7,2511.6,0.79568]
[1749223248841,24.081,2511.8,2511.6,0.79566]
[1749223249041,24.081,2511.8,2511.7,1.2761]
[1749223249240,24.081,2511.8,2511.7,2.07175]
[1749223249543,0.79562,2511.8,2511.7,1.2761]
[1749223249737,9.4518,2512.0,2511.1,0.00597479]
[1749223249937,9.4518,2512.0,2511.1,1.99554479]
[1749223249938,3.2078,2511.7,2511.1,1.99554479]
[1749223250146,4.00347,2511.7,2511.1,0.00597479]
[1749223250340,3.2078,2511.7,2511.1,0.00597479]
[1749223250639,3.2078,2511.7,2511.3,0.79576]
[1749223250842,3.2078,2511.7,2511.4,1.3368]
[1749223251038,6.244,2511.6,2511.1,0.00597479]
[1749223251240,6.244,2511.6,2511.4,0.79572]
[1749223251442,0.79574,2511.5,2511.3,1.3368]
[1749223251646,0.79578,2511.3,2511.2,0.07133351]
[1749223252045,26.61878,2511.3,2511.2,0.07133351]
[1749223252449,3.2078,2511.4,2511.3,0.79578]
[1749223252746,0.79578,2511.3,2511.2,0.07133351]
[1749223253139,9.4918,2511.4,2511.2,0.07133351]
[1749223253140,3.2078,2511.4,2511.2,1.45733351]
[1749223253341,9.4918,2511.4,2511.2,1.45733351]
[1749223253552,10.28757,2511.4,2511.2,1.45733351]
[1749223253745,9.4918,2511.4,2511.3,0.79578]
[1749223253946,3.2078,2511.4,2511.3,0.79578]
[1749223254145,3.2078,2511.4,2511.2,2.25312351]
[1749223254351,0.79578,2511.3,2511.2,1.45733351]
[1749223254642,3.2078,2511.4,2511.3,0.79578]
[1749223255351,0.79578,2511.3,2511.2,0.07133351]
[1749223255546,9.4918,2511.4,2511.2,0.07133351]
[1749223255747,3.2078,2511.4,2511.2,0.07133351]
[1749223256050,3.2078,2511.4,2511.3,2.11378]
[1749223256246,9.4918,2511.8,2511.6,0.79567]
[1749223256444,0.79565,2511.7,2511.6,0.79567]
[1749223256648,10.28744,2511.8,2511.6,0.79567]
[1749223256845,9.4918,2511.8,2511.3,1.318]
[1749223257049,3.2078,2511.5,2511.3,1.318]
[1749223257353,4.00353,2511.5,2511.4,0.79575]
[1749223257644,4.00351,2511.5,2511.4,0.79575]
[1749223257838,3.2078,2511.5,2511.3,1.318]
[1749223258044,3.2078,2511.5,2511.4,0.79575]
[1749223258641,1.367,2512.1,2511.7,0.79565]
[1749223258642,3.2078,2511.8,2511.7,0.79565]
[1749223259446,4.00342,2511.8,2511.7,0.79565]
[1749223259755,3.2078,2511.8,2511.7,0.79565]
[1749223260154,3.2078,2511.8,2511.6,1.3918]
[1749223260452,4.00344,2511.8,2511.7,0.79565]
[1749223260954,3.2078,2511.8,2511.7,0.79565]
[1749223261252,0.79572,2511.5,2511.2,0.07133351]
[1749223261549,0.79575,2511.4,2511.3,1.3918]
[1749223261755,0.79578,2511.3,2511.2,0.07133351]
[1749223262047,0.79578,2511.3,2511.2,0.86714351]
[1749223262247,4.00354,2511.5,2511.2,0.07133351]
[1749223262454,0.79578,2511.3,2511.2,1.36493351]
[1749223262655,0.79578,2511.3,2511.2,2.16074351]
[1749223263151,0.79578,2511.3,2511.2,0.07133351]
[1749223263358,7.07978,2511.3,2511.2,0.07133351]
[1749223263648,21.51177,2511.4,2511.3,0.79576]
[1749223263845,0.79578,2511.3,2511.2,0.86711351]
[1749223264241,0.79578,2511.3,2511.2,0.07133351]
[1749223264446,0.79602,2510.6,2510.3,1.5689685]
[1749223264651,4.00382,2510.6,2510.5,0.796]
[1749223264849,0.79609,2510.3,2510.2,2.09831]
[1749223265042,4.00389,2510.3,2510.2,2.09831]
[1749223265246,4.00389,2510.3,2509.8,1.99061]
[1749223265447,4.00389,2510.3,2509.7,1.5689685]
[1749223265448,3.2078,2510.0,2509.3,3.5599585]
[1749223265649,0.79623,2509.9,2509.8,0.80221479]
[1749223265853,0.79623,2509.9,2509.8,0.00597479]
[1749223266054,0.79622,2509.9,2509.8,0.00597479]
[1749223266552,3.2078,2510.0,2509.9,0.79622]
[1749223266857,0.00597479,2510.3,2510.1,0.79615]
[1749223266858,0.79613,2510.2,2510.1,0.79615]
[1749223267155,0.79613,2510.2,2509.8,1.30817479]
[1749223267156,9.49777479,2510.3,2509.8,1.30817479]
[1749223267346,0.79614,2510.2,2510.0,0.79616]
[1749223267552,9.49777479,2510.3,2509.8,0.00597479]
[1749223267755,4.00402,2509.9,2509.8,0.00597479]
[1749223268046,3.2078,2509.9,2509.8,0.80222479]
[1749223268247,9.00402,2509.9,2509.8,0.00597479]
[1749223268458,10.19844,2509.9,2508.8,1.5689685]
[1749223268751,10.19844,2509.9,2508.5,3.8704]
[1749223268752,3.2078,2509.1,2508.9,1.3331]
[1749223269053,3.2078,2509.7,2509.6,0.79632]
[1749223269260,6.285,2509.9,2509.8,0.79625]
[1749223269451,3.2078,2510.0,2509.9,0.79622]
[1749223269851,0.00597479,2510.3,2509.7,1.3331]
[1749223270057,3.2078,2510.1,2509.7,1.3331]
[1749223270251,0.79628,2509.7,2509.6,0.00597479]
[1749223270557,3.2078,2509.8,2509.6,0.00597479]
[1749223270757,4.00407,2509.8,2509.6,0.00597479]
[1749223271056,2.71605479,2510.3,2509.6,0.00597479]
[1749223271057,0.00597479,2510.3,2510.2,0.79613]
[1749223272155,3.21377479,2510.3,2510.0,1.2901]
[1749223272354,0.79613,2510.2,2510.0,1.2901]
[1749223272654,3.21377479,2510.3,2510.2,0.79613]
[1749223272860,0.00597479,2510.3,2510.2,0.79613]
[1749223273458,4.79e-06,2510.3,2510.2,5.79613]
[1749223274254,4.79e-06,2510.3,2510.2,9.00393]
[1749223274458,3.2078,2510.9,2510.8,0.79594]
[1749223276256,0.00597479,2511.1,2511.0,0.79587]
[1749223277265,3.21377479,2511.1,2510.9,1.3033]
[1749223277468,14.49977479,2511.1,2510.3,2.2037685]
[1749223277764,4.00386,2510.4,2510.3,1.3622]
[1749223277963,9.4938,2510.7,2510.6,0.796]
[1749223278160,9.4938,2510.7,2510.2,1.99025]
[1749223278358,9.4938,2510.7,2510.5,0.79602]
[1749223278559,9.4938,2510.7,2510.3,1.3622]
[1749223278760,0.796,2510.6,2510.4,0.79603]
[1749223278968,10.28978,2510.7,2510.5,0.79601]
[1749223279266,10.28978,2510.7,2510.3,1.3622]
[1749223279267,9.4938,2510.7,2510.3,1.3622]
[1749223279764,10.28978,2510.7,2510.5,0.79601]
[1749223279961,9.4938,2510.7,2510.3,1.3622]
[1749223280163,3.2078,2510.4,2509.7,4.1944285]
[1749223280466,6.286,2510.7,2509.8,1.2997]
[1749223280467,3.2078,2510.1,2509.8,1.2997]
[1749223280665,3.2078,2510.1,2510.0,0.79619]
[1749223281068,3.2078,2510.1,2509.8,1.2997]
[1749223281264,3.2078,2510.1,2510.0,0.79619]
[1749223281462,3.2078,2510.1,2509.8,1.2997]
[1749223281663,3.2078,2510.1,2510.0,0.79619]
[1749223282266,4.00399,2510.1,2509.9,0.79621]
[1749223282471,20.595,2510.0,2508.9,1.5689685]
[1749223282670,3.2078,2509.2,2508.8,2.09625]
[1749223282866,3.2078,2508.9,2508.8,2.09627]
[1749223283361,3.2078,2508.9,2508.7,0.79658]
[1749223283665,3.2078,2508.9,2508.3,2.6203]
[1749223283666,3.2078,2508.9,2508.5,0.00597479]
[1749223283867,3.2078,2508.6,2508.5,0.80263479]
[1749223284771,0.79658,2508.8,2508.6,0.79661]
[1749223284971,3.2078,2508.9,2508.8,0.79657]
[1749223285370,3.2078,2508.9,2508.5,0.00597479]
[1749223285666,3.2078,2508.9,2508.5,0.80264479]
[1749223285667,3.2078,2508.6,2508.5,0.80264479]
[1749223285974,0.79655,2508.9,2508.8,0.79657]
[1749223285975,3.2078,2508.9,2508.8,0.79657]
[1749223286171,3.2078,2508.9,2508.6,1.3924]
[1749223286364,0.79658,2508.8,2508.6,1.3924]
[1749223286771,0.79658,2508.8,2508.6,0.79663]
[1749223286969,3.2078,2508.9,2508.5,0.00597479]
[1749223287169,3.2078,2508.6,2508.5,0.00597479]
[1749223287364,9.3468,2508.6,2508.5,0.80263479]
[1749223287572,3.2078,2508.6,2508.5,0.80263479]
[1749223287772,3.2078,2509.0,2508.9,0.79652]
[1749223287968,0.79658,2508.8,2508.6,1.3924]
[1749223288280,3.2078,2509.0,2508.8,0.79655]
[1749223288475,3.2078,2509.0,2508.6,1.3924]
[1749223288876,3.2078,2509.0,2508.8,0.79654]
[1749223289075,3.2078,2509.0,2508.5,0.00597479]
[1749223289379,0.79655,2508.9,2508.6,1.2826]
[1749223289677,3.2078,2508.7,2508.6,1.2826]
[1749223289874,0.79687,2507.9,2507.7,0.16059001]
[1749223290075,3.2078,2507.8,2507.7,0.95751001]
[1749223290276,4.00469,2507.8,2507.7,0.16059001]
[1749223290475,3.2078,2508.2,2507.7,5.95751001]
[1749223290672,0.79664,2508.6,2508.3,0.79672]
[1749223290874,3.2078,2508.7,2508.2,0.00597479]
[1749223291083,0.79665,2508.6,2508.3,0.79672]
[1749223291383,0.79667,2508.5,2508.2,0.80272479]
[1749223291681,6.141,2508.5,2508.3,0.79672]
[1749223291887,6.141,2508.5,2508.2,0.00597479]
[1749223292077,6.141,2508.6,2508.2,0.00597479]
[1749223292485,6.141,2508.6,2508.3,0.79671]
[1749223292686,6.141,2508.6,2508.4,0.79668]
[1749223292889,6.141,2508.6,2508.4,0.79667]
[1749223293088,6.93763,2508.6,2508.3,0.79671]
[1749223293284,6.141,2508.6,2508.2,0.00597479]
[1749223293790,0.79672,2508.3,2508.2,0.00597479]
[1749223293986,3.2078,2508.4,2508.2,0.00597479]
[1749223294186,0.79672,2508.3,2508.2,0.00597479]
[1749223294884,2.08062,2508.3,2508.2,0.00597479]
[1749223295082,0.79668,2508.4,2508.2,0.00597479]
[1749223295279,0.79671,2508.3,2508.2,0.00597479]
[1749223295680,9.3488,2508.7,2508.2,0.00597479]
[1749223295883,9.3488,2508.7,2508.3,0.07133351]
[1749223296087,6.141,2508.6,2508.4,0.79665]
[1749223296289,6.141,2508.6,2508.3,1.37923351]
[1749223296490,0.79668,2508.4,2508.3,0.07133351]
[1749223296886,6.141,2508.6,2508.3,0.07133351]
[1749223297093,6.141,2508.6,2508.5,0.79664]
[1749223297293,3.2078,2508.7,2508.6,0.79661]
[1749223297482,6.142,2508.9,2508.5,3.2078]
[1749223297687,6.142,2508.9,2508.6,1.3079]
[1749223297894,6.142,2508.9,2508.3,0.07133351]
[1749223297895,6.142,2508.9,2508.4,0.79666]
[1749223298105,6.142,2508.9,2508.4,1.3814]
[1749223298594,6.142,2508.9,2508.6,0.7966]
[1749223298796,6.142,2508.9,2508.5,0.79662]
[1749223298797,6.93854,2508.9,2508.5,0.79662]
[1749223298994,0.79655,2508.8,2508.6,0.79661]
[1749223299193,6.142,2508.9,2508.4,1.3814]
[1749223299388,6.142,2508.9,2508.6,0.7966]
[1749223299591,0.00597479,2509.1,2508.8,3.2078]
[1749223299893,0.00597479,2509.1,2509.0,0.79649]
[1749223302697,0.00597479,2509.1,2508.9,1.3814]
[1749223302996,0.00597479,2509.1,2509.0,0.79649]
[1749223304302,1.9906,2509.8,2509.3,1.99097]
[1749223304303,0.79626,2509.8,2509.3,1.99097]
[1749223304595,6.141,2510.4,2509.6,1.99075]
[1749223304794,0.79618,2510.0,2509.8,0.79621]
[1749223304992,8.13115,2510.4,2509.7,1.2695]
[1749223305199,8.13115,2510.4,2509.7,2.06574]
[1749223305200,1.99027,2510.2,2509.7,2.06574]
[1749223305389,0.79622,2509.9,2509.8,0.00597479]
[1749223305594,6.93722,2509.9,2509.8,0.00597479]
[1749223305995,8.30342,2509.9,2509.8,0.00597479]
[1749223306402,8.30342,2509.9,2509.2,4.0042]
[1749223306403,0.79636,2509.4,2509.2,4.0042]
[1749223306597,0.79639,2509.3,2509.2,3.2078]
[1749223306997,0.79638,2509.4,2509.3,0.79639]
[1749223307199,0.79639,2509.3,2509.2,3.2078]
[1749223308297,0.79638,2509.4,2509.3,0.79638]
[1749223308501,0.79639,2509.3,2509.2,4.0042]
[1749223308996,3.2078,2509.7,2509.2,3.2078]
[1749223309202,0.79638,2509.4,2509.3,0.79637]
[1749223309698,3.2078,2509.7,2509.3,0.79639]
[1749223309903,3.2078,2509.7,2509.2,3.2078]
[1749223309904,0.79634,2509.5,2509.2,3.2078]
[1749223310103,3.2078,2509.7,2509.3,1.2648]
[1749223310301,6.141,2509.6,2509.2,0.79642]
[1749223310499,1.99084,2509.5,2509.1,0.79645]
[1749223310706,0.79642,2509.3,2509.2,0.79643]
[1749223310903,6.141,2509.6,2509.0,0.00597479]
[1749223311202,0.79641,2509.3,2509.2,0.79642]
[1749223311403,0.7964,2509.3,2509.0,1.27077479]
[1749223311594,0.7964,2509.3,2509.2,0.79641]
[1749223312406,6.141,2509.6,2509.1,1.99113]
[1749223312703,0.79635,2509.5,2509.4,0.79635]
[1749223312905,0.79646,2509.1,2509.0,2.06725479]
[1749223313105,0.79646,2509.1,2509.0,0.80245479]
[1749223313399,4.5275,2509.4,2509.0,0.00597479]
[1749223313606,4.00419,2509.4,2509.3,0.7964]
[1749223313801,6.8112,2509.6,2509.5,0.79633]
[1749223313999,6.9373,2509.6,2509.5,0.79633]
[1749223314601,6.9373,2509.6,2509.2,1.99103]
[1749223314602,0.79634,2509.5,2509.4,0.79634]
[1749223315108,0.79638,2509.4,2509.3,0.79636]
[1749223315312,11.42949,2509.7,2509.2,4.5012]
[1749223315505,0.79637,2509.4,2509.3,0.79637]
[1749223315706,3.2078,2510.0,2509.2,6.49223]
[1749223316002,0.79635,2509.5,2509.4,0.79634]
[1749223316205,0.79621,2509.9,2509.8,0.07133351]
[1749223316405,3.2078,2510.0,2509.8,0.07133351]
[1749223316602,0.79621,2509.9,2509.8,0.07133351]
[1749223316804,0.00597479,2510.3,2510.1,0.79614]
[1749223317000,0.00597479,2510.3,2510.2,0.79611]
[1749223317207,3.2078,2510.9,2510.8,0.79592]
[1749223317401,3.2078,2510.9,2510.3,1.99021]
[1749223317402,34.9,2511.5,2510.5,1.99003]
[1749223317713,1.3897,2511.4,2510.5,3.1736029]
[1749223317908,1.3897,2511.4,2510.4,4.3913529]
[1749223317909,0.79596,2510.7,2510.4,4.3913529]
[1749223318104,0.79595,2510.7,2510.5,0.79601]
[1749223318300,0.00597479,2510.9,2510.7,0.79593]
[1749223318516,0.79594,2510.8,2510.6,0.79597]
[1749223318707,0.80188479,2510.9,2510.7,0.79595]
[1749223318902,0.00597479,2510.9,2510.8,0.79592]
[1749223319710,0.79592,2510.8,2510.6,0.79597]
[1749223320013,0.79592,2510.8,2510.4,3.2078]
[1749223320210,0.79605,2510.4,2510.3,0.63787479]
[1749223320411,0.79605,2510.4,2510.3,0.00597479]
[1749223321005,0.79605,2510.4,2509.8,0.86755351]
[1749223321006,8.24738,2510.4,2509.8,0.86755351]
[1749223321212,1.2572,2510.4,2509.8,1.43113351]
[1749223321412,3.2078,2510.5,2509.8,1.43113351]
[1749223321810,3.2078,2510.5,2509.9,1.99053]
[1749223322109,0.79606,2510.4,2510.2,0.79609]
[1749223322308,0.79614,2510.1,2510.0,1.3598]
[1749223322504,3.2078,2510.5,2510.0,1.3598]
[1749223322811,3.2078,2510.5,2510.0,4.5676]
[1749223323009,4.00383,2510.5,2510.3,0.79607]
[1749223323214,3.2078,2510.5,2510.0,4.5676]
[1749223323411,0.79605,2510.4,2510.2,0.79611]
[1749223323607,3.2078,2510.5,2510.2,0.79612]
[1749223323814,0.79615,2510.1,2510.0,4.5676]
[1749223324109,0.79615,2510.1,2510.0,1.3598]
[1749223324311,0.79618,2510.0,2509.9,0.00597479]
[1749223325312,0.79618,2510.0,2509.9,0.0773083]
[1749223327008,6.228,2510.4,2510.3,0.79608]
[1749223327210,6.228,2510.4,2510.0,2.17556]
[1749223327404,6.228,2510.4,2509.9,0.0773083]
[1749223327405,0.79618,2510.0,2509.9,0.0773083]
[1749223327813,3.2078,2510.2,2509.9,0.8735083]
[1749223328016,3.2078,2510.2,2509.9,0.0773083]
[1749223328216,0.79601,2510.6,2510.1,1.99037]
[1749223328412,6.229,2510.7,2510.3,3.2078]
[1749223328715,6.229,2510.7,2510.2,1.2656]
[1749223328716,3.2078,2512.0,2511.9,0.79558]
[1749223328909,3.28741783,2512.0,2511.5,0.7957]
[1749223329108,0.079621,2511.9,2511.2,3.2078]
[1749223329306,1.419921,2511.9,2510.9,3.2078]
[1749223329513,5.19691,2511.7,2510.9,3.2078]
[1749223329817,0.79575,2511.4,2511.0,0.00597479]
[1749223330006,0.79578,2511.3,2511.0,0.00597479]
[1749223330212,0.00597479,2511.6,2511.0,0.00597479]
[1749223330418,0.79578,2511.3,2511.1,0.79583]
[1749223330612,0.79583,2511.1,2511.0,0.00597479]
[1749223330915,3.2078,2511.4,2511.0,0.80181479]
[1749223330916,0.79582,2511.2,2511.0,0.80181479]
[1749223331116,3.2078,2511.4,2511.0,0.80181479]
[1749223331307,0.79583,2511.1,2511.0,0.00597479]
[1749223331713,4.00363,2511.1,2511.0,0.00597479]
[1749223331907,3.2078,2511.1,2511.0,0.00597479]
[1749223332113,0.79581,2511.2,2511.1,0.79583]
[1749223332325,0.79583,2511.1,2511.0,0.00597479]
[1749223334115,4.00363,2511.1,2511.0,0.00597479]
[1749223334416,0.79618,2510.0,2509.9,0.07133351]
[1749223334715,3.2078,2510.2,2510.1,0.79615]
[1749223334924,6.227,2510.5,2509.9,1.42703351]
[1749223335114,3.2078,2510.4,2510.1,0.79614]
[1749223335414,3.2078,2510.4,2510.0,0.00597479]
[1749223335718,0.00597479,2510.5,2510.4,0.79605]
[1749223336214,0.00597479,2510.5,2510.4,5.79605]
[1749223337217,24.88485,2511.1,2510.9,0.7959]
[1749223337419,0.79587,2511.0,2510.9,0.79586]
[1749223337623,24.089,2511.1,2511.0,0.79586]
[1749223337816,28.80247,2511.3,2510.7,4.4811]
[1749223338015,28.80247,2511.3,2510.9,0.79587]
[1749223338218,0.79583,2511.2,2511.1,0.79582]
[1749223338518,0.79586,2511.1,2511.0,0.79585]
[1749223338725,0.79582,2511.2,2511.1,0.79581]
[1749223338920,0.00597479,2511.4,2511.3,0.79577]
[1749223339221,4.79e-06,2511.4,2511.3,0.79577]
[1749223339522,4.79e-06,2511.4,2511.3,5.79577]
[1749223339719,4.79e-06,2511.4,2511.2,1.9364]
[1749223339919,0.79577,2511.3,2511.2,2.06908]
[1749223340121,4.79e-06,2511.4,2511.3,0.79577]
[1749223340328,0.79577,2511.3,2511.2,0.79577]
[1749223340826,4.00355479,2511.4,2511.3,0.79577]
[1749223341028,3.20780479,2511.4,2511.0,1.98967]
[1749223341221,4.79e-06,2511.4,2511.3,0.79577]
[1749223341722,0.7958,2511.2,2511.1,1.3912]
[1749223341920,5.19719479,2511.4,2511.0,0.79585]
[1749223342121,0.79585,2511.1,2511.0,0.79585]
[1749223342321,5.19719479,2511.4,2510.8,1.3912]
[1749223342625,6.53799479,2511.4,2510.9,0.7959]
[1749223342823,0.79588,2511.0,2510.9,0.7959]
[1749223343229,3.20780479,2511.4,2510.8,4.599]
[1749223343526,3.20780479,2511.4,2511.3,0.79577]
[1749223343922,4.00354479,2511.4,2511.3,0.79577]
[1749223344121,3.20780479,2511.4,2511.3,0.79577]
[1749223344314,4.79e-06,2511.4,2511.3,0.79577]
[1749223344520,4.79e-06,2511.4,2511.3,2.16857]
[1749223344521,0.79574479,2511.4,2511.3,2.16857]
[1749223344820,0.79579,2511.3,2511.0,0.6695]
[1749223345119,0.79579,2511.3,2511.2,0.79578]
[1749223345318,4.79e-06,2511.4,2511.3,0.79577]
[1749223346728,4.79e-06,2511.4,2511.3,5.79577]
[1749223347228,4.79e-06,2511.4,2511.3,9.3250385]
[1749223347632,4.79e-06,2511.4,2511.3,13.85307]
[1749223348426,4.79e-06,2511.4,2511.3,9.3250385]
[1749223348626,4.79e-06,2511.4,2511.3,7.75607]
[1749223348826,4.79e-06,2511.4,2511.3,2.75607]
[1749223349637,4.79e-06,2511.4,2511.3,7.75607]
[1749223350630,4.79e-06,2511.4,2511.3,9.3250385]
[1749223351030,4.79e-06,2511.4,2511.3,10.06256868]
[1749223351232,4.79e-06,2511.4,2511.3,16.15856868]
[1749223351635,4.79e-06,2511.4,2511.3,13.85207]
[1749223351926,4.79e-06,2511.4,2511.3,15.4232333]
[1749223352633,4.79e-06,2511.4,2511.3,13.85207]
[1749223353327,4.79e-06,2511.4,2511.3,2.09467]
[1749223354622,4.79e-06,2511.4,2511.3,7.09467]
[1749223355142,4.79e-06,2511.4,2511.3,8.6658333]
[1749223355339,4.79e-06,2511.4,2511.3,7.09467]
[1749223355538,4.79e-06,2511.4,2511.3,27.49167]
[1749223355738,4.79e-06,2511.4,2511.3,27.56300351]
[1749223356540,0.79527,2512.9,2511.7,3.9782]
[1749223356739,0.79527,2512.9,2512.8,0.79528]
[1749223357440,0.6904,2513.1,2512.5,1.98848]
[1749223357642,0.79528,2512.9,2512.8,0.79528]
[1749223357836,3.2078,2512.9,2512.5,0.00597479]
[1749223358040,3.2078,2512.9,2512.8,0.79529]